Cogmind - Beta 9.6 @@@ ROGUE MODE // 2020.08.08 @ 22:32:04 Player: Skitgris Result: Destroyed by S-10 Pest with Light Assault Rifle Performance ------------- Evolutions (0) 0 Regions Visited (2) 400 Robots Destroyed (15) 75 Value Destroyed (454) 454 Prototype IDs (0) 0 Alien Tech Used (0) 0 Bonus (0) 0 TOTAL SCORE: 929 Bonus ------- None Cogmind --------- Core Integrity 0/250 Matter 290/300 Energy 99/100 System Corruption 0% Temperature Cool (1) Movement Hovering (60) Location -10/Mines Parts ------- > --- POWER (1) -------- (None) > --- PROPULSION (2) --- Hover Unit > --- UTILITY (2) ------ Small Storage Unit > --- WEAPON (2) ------- (None) > --- INVENTORY (6) ---- Light Ion Engine Aluminum Leg Armored Wheel Armored Wheel Armored Wheel Armored Wheel Peak State ------------ > --- POWER ------------ Light Nuclear Core > --- PROPULSION ------- Armored Wheel Armored Wheel > --- UTILITY ---------- Small Storage Unit Light Armor Plating > --- WEAPON ----------- Small Laser Particle Gun > --- INVENTORY -------- Light Ion Engine Aluminum Leg Aluminum Leg Aluminum Leg Grenade Launcher [Rating: 12] Favorites ----------- Power Light Nuclear Core Engine Light Ion Engine Power Core Light Nuclear Core Propulsion Armored Wheel Leg Aluminum Leg Wheel Armored Wheel Hover Unit Hover Unit Utility Small Storage Unit Storage Small Storage Unit Protection Light Armor Plating Weapon Medium Laser Energy Gun Medium Laser Launcher Grenade Launcher Build | -11 -10 -10 ------- Run | Scr Mat Min Slots Evolved . | . . . Power . | . . . Propulsion . | . . . Utility . | . . . Weapon . | . . . Parts Attached 25 | 6 11 8 Power 3 | 1 1 1 Engine 1 | 1 . . Core 2 | . 1 1 Reactor . | . . . Propulsion 7 | 2 3 2 Treads . | . . . Leg 2 | 1 1 . Wheel 3 | 1 2 . Hover 2 | . . 2 Flight . | . . . Utility 3 | 1 2 . Device . | . . . Storage 1 | 1 . . Processor . | . . . Hackware . | . . . Protection 2 | . 2 . Artifact . | . . . Weapon 12 | 2 5 5 Energy Gun 10 | 2 5 3 Energy Cannon . | . . . Ballistic Gun . | . . . Ballistic Cannon . | . . . Launcher 2 | . . 2 Special Weapon . | . . . Impact Weapon . | . . . Slashing Weapon . | . . . Piercing Weapon . | . . . Special Melee Weapon . | . . . Unidentified Prototypes . | . . . Parts Lost 10 | . 3 7 Power 2 | . 1 1 Propulsion 1 | . . 1 Utility 1 | . . 1 Weapon 6 | . 2 4 Highest Loss Streak 5 | . 3 5 Average Slot Usage (%) 86 | . 91 78 Engine 2 | . 4 . Core 9 | . 8 11 Leg 5 | . 9 . Wheel 20 | . 18 23 Hover 1 | . . 3 Storage 14 | . 14 14 Protection 6 | . 7 4 Energy Gun 23 | . 27 19 Naked Turns . | . . . Heaviest Build 16 | 11 16 16 Greatest Support 24 | 16 24 24 Greatest Overweight (x) 1 | 1 1 . Average Overweight (x) . | . . . Largest Inventory Capacity 6 | 6 6 6 Average Capacity 5 | 5 6 6 Most Carried 6 | 6 6 6 Average Carried 5 | 3 5 5 Final Capacity 6 | 6 6 6 Final Carried 6 | 5 6 6 Class Distribution -------------------- 100% | Mutant Dominant Class ---------------- Mutant | -10/Materials Mutant | -10/Mines Resources | -11 -10 -10 ----------- Run | Scr Mat Min Matter Collected 450 | 195 100 155 Remotely . | . . . Salvage Created 506 | . 317 189 Parts 27 | . 19 8 Haulers Intercepted . | . . . Recyclers Shooed 2 | . 1 1 Parts Field Recycled . | . . . Retrieved Matter . | . . . Parts Self-Destructed . | . . . Prevented . | . . . Kills | -11 -10 -10 ------- Run | Scr Mat Min Combat Hostiles Destroyed 13 | . 7 6 Guns 10 | . 7 3 AOE 3 | . . 3 Classes Destroyed 4 | . 4 . Recycler 1 | . 1 . Operator 1 | . 1 . Swarmer 3 | . 3 . Grunt 10 | . 4 6 Best Kill Streak 4 | . 4 2 Combat Bots Only 3 | . 3 2 Max Kills in Single Turn 2 | . 1 2 Gunslinging . | . . . Exploded 2 | . . 2 Melee . | . . . Uniques/NPCs Destroyed . | . . . Combat | -11 -10 -10 -------- Run | Scr Mat Min Damage Taken 1046 | . 315 731 Core 256 | . 22 234 Absorbed by Shields . | . . . Core Remaining (%) 100 | 100 . . Volleys Fired 45 | . 23 22 Largest 2 | . 2 2 Hottest 105 | . 105 100 Shots Fired 76 | . 41 35 Gun 71 | . 41 30 Cannon . | . . . Launcher 5 | . . 5 Special . | . . . Kinetic . | . . . Thermal 65 | . 35 30 Explosive 5 | . . 5 Electromagnetic 6 | . 6 . Robot Hit Streak 7 | . 6 7 Robot Miss Streak 6 | . 6 3 Penetration Max . | . . . Secondary Targets . | . . . Shots Hit Robots 40 | . 22 18 Core Hits 30 | . 15 15 Critical Hits . | . . . Critical Kills . | . . . Critical Parts Destroyed . | . . . Melee Attacks . | . . . Impact . | . . . Slashing . | . . . Piercing . | . . . Sneak Attacks . | . . . Combat Hostiles . | . . . Follow-up Attacks . | . . . Damage Inflicted 878 | . 263 615 Guns 488 | . 263 225 Cannons . | . . . Explosions 390 | . . 390 Melee . | . . . Ramming . | . . . Kinetic . | . . . Thermal 457 | . 232 225 Explosive 390 | . . 390 Electromagnetic 31 | . 31 . Impact . | . . . Slashing . | . . . Piercing . | . . . Highest Corruption . | . . . Average Corruption . | . . . Corruption Purged . | . . . Overload Shots . | . . . Overflow Damage . | . . . Projectiles . | . . . Explosions . | . . . Melee . | . . . Knockbacks . | . . . Impact . | . . . Kinetic . | . . . Secondary . | . . . Self-Inflicted Damage 47 | . . 47 Shots 4 | . . 4 Rammed . | . . . Targets Rammed . | . . . Kicked . | . . . Crushed . | . . . Highest Temperature 336 | . 336 260 Average Temperature 109 | . 103 116 Received Heat Transfer 384 | . 159 225 Siege Activations . | . . . Robots Corrupted . | . . . Combat Hostiles . | . . . Parts Fried . | . . . Impact Corruptions . | . . . Robots Melted . | . . . Combat Hostiles . | . . . Parts Melted . | . . . Heat Transferred 1201 | . 547 654 Parts Sabotaged . | . . . Parts Stolen . | . . . Parts Stripped . | . . . Power Chain Reactions . | . . . Missiles Intercepted . | . . . Alert | -11 -10 -10 ------- Run | Scr Mat Min Peak Influence 190 | . 180 190 Average Influence 99 | . 89 144 Maximum Alert Level . | . . . Low Security (%) 100 | 100 100 100 Level 1 . | . . . Level 2 . | . . . Level 3 . | . . . Level 4 . | . . . Level 5 . | . . . High Security . | . . . Max Security . | . . . Squads Dispatched 3 | . 3 . Investigation 2 | . 2 . Extermination . | . . . Reinforcement 1 | . 1 . Assault . | . . . Garrison . | . . . Intercept . | . . . Construction Impeded . | . . . Haulers Reinforced . | . . . Stealth | -11 -10 -10 --------- Run | Scr Mat Min Distress Signals 1 | . 1 . Communications Jammed . | . . . Distress Signals . | . . . Times Spotted 21 | . 11 10 Peak Tracking Total 3 | . 3 3 Tactical Retreats 2 | . 1 1 Traps | -11 -10 -10 ------- Run | Scr Mat Min Traps Triggered 1 | . 1 . Indirectly . | . . . Trap Hack Attempts . | . . . Triggered . | . . . Disarmed . | . . . Reprogrammed . | . . . Reused . | . . . Traps Extracted . | . . . Installed . | . . . Triggered . | . . . Machines | -11 -10 -10 ---------- Run | Scr Mat Min Machines Disabled 1 | . 1 . Max in Single Turn 1 | . 1 . Machines Sabotaged . | . . . Garrisons Compromised . | . . . Overloaded Fab Kills . | . . . Fab Network Shutdowns . | . . . Hacking | -11 -10 -10 --------- Run | Scr Mat Min Machines Accessed 1 | . 1 . Terminals 1 | . 1 . Fabricators . | . . . Repair Stations . | . . . Recycling Units . | . . . Scanalyzers . | . . . Garrison Access . | . . . Total Hacks 2 | . 2 . Successful . | . . . Failed 2 | . 2 . Catastrophic 2 | . 2 . Database Lockouts . | . . . Manual . | . . . Terminals 2 | . 2 . Fabricators . | . . . Repair Stations . | . . . Recycling Units . | . . . Scanalyzers . | . . . Garrison Access . | . . . Terminal Hacks . | . . . Fabricator Hacks . | . . . Repair Station Hacks . | . . . Recycling Unit Hacks . | . . . Scanalyzer . | . . . Garrison Access Hacks . | . . . Unauthorized Hacks . | . . . Terminals . | . . . Fabricators . | . . . Repair Stations . | . . . Recycling Units . | . . . Scanalyzers . | . . . Garrison Access . | . . . Data Cores Recovered . | . . . Used . | . . . Hacking Detections 1 | . 1 . Full Trace Events 1 | . 1 . Feedback Events . | . . . Feedback Blocked . | . . . Robot Schematics Acquired . | . . . Robots Built . | . . . Matter . | . . . Time . | . . . Total Robot Build Rating . | . . . Part Schematics Acquired . | . . . Parts Built . | . . . Matter . | . . . Time . | . . . Total Part Build Rating . | . . . Parts Repaired . | . . . Time . | . . . Parts Recycled . | . . . Recycled Matter . | . . . Retrieved Matter . | . . . Retrieved Components . | . . . Parts Scanalyzed . | . . . Part Schematics Acquired . | . . . Parts Damaged . | . . . Bothacking | -11 -10 -10 ------------ Run | Scr Mat Min Used RIF Installer . | . . . Robots Hacked . | . . . Non-combat . | . . . Combat . | . . . Robot Hacks Applied . | . . . Relay Couplers Released . | . . . Robots Rewired . | . . . Allies Hacked . | . . . Hacks Repelled . | . . . Allies | -11 -10 -10 -------- Run | Scr Mat Min Total Allies . | . . . Largest Group . | . . . Highest-Rated Group . | . . . Highest-Rated Ally . | . . . Total Orders . | . . . Ally Attacks . | . . . Total Damage . | . . . Kills . | . . . Allies Corrupted . | . . . Allies Melted . | . . . Intel | -11 -10 -10 ------- Run | Scr Mat Min Robot Analysis Total . | . . . Derelict Logs Recovered . | . . . Drone Launches . | . . . Drone Recoveries . | . . . Exploration | -11 -10 -10 ------------- Run | Scr Mat Min Turns Passed 627 | 70 326 231 Spaces Moved 454 | 52 216 186 Core 17 | 17 . . Treads . | . . . Legs 80 | 33 47 . Wheels 284 | 2 169 113 Hover 73 | . . 73 Flight . | . . . Fastest Speed 50 | 50 90 56 Average Speed 93 | 105 103 77 Slowest Speed 150 | 150 150 90 Overloaded Moves . | . . . Propulsion Burnouts . | . . . Robots Hopped . | . . . Cave-ins Triggered . | . . . Exploration Rate (%) 29 | 3 40 46 Regions Visited 2 Branch Regions 1 Pre-discovered Areas . | . . . Known Exits Taken . | . . . Unknown Exits Taken 2 | 1 1 . Scrap Searched . | . . . Spaces Dug . | . . . Terrain Destroyed 45 | . . 45 Melee . | . . . Projectile . | . . . AOE 45 | . . 45 Actions | -11 -10 -10 --------- Run | Scr Mat Min Total 580 | 66 279 235 Wait 24 | . 8 16 Move 452 | 51 215 186 Hop . | . . . Pick Up 22 | 9 11 2 Fast Attach 6 | 2 3 1 Attach 12 | 4 6 2 Detach 2 | . 2 . Swap 7 | . 2 5 Drop 10 | . 9 1 Fire 45 | . 23 22 Melee . | . . . Ram . | . . . Kick . | . . . Crush . | . . . Escape Stasis . | . . . Rewire . | . . . Trap . | . . . Miscellaneous . | . . . Route ------- -11/Scrapyard -10/Materials -10/Mines History --------- Turn | Location | Event 10 | -11/Scrapyard | Discovered new exit (range 16) 71 | -11/Scrapyard | Entered Materials 217 | -10/Materials | Lost 3 parts (1p2w) 326 | -10/Materials | Build established: Mutant 341 | -10/Materials | Discovered new exit (range 14) 397 | -10/Materials | Entered Mines 580 | -10/Mines | Core integrity fell below 50% 601 | -10/Mines | Core integrity fell below 20% 628 | -10/Mines | Lost 5 parts (1p1n3w) 628 | -10/Mines | Destroyed by S-10 Pest with Light Assault Rifle Last Messages --------------- 00479_ Acquired 15 matter. 00481_ K-01 Serf collects debris. 00482_ U-05 Engineer lays Concrete. 00487_ U-05 Engineer builds a Wall. 00489_ K-01 Serf collects debris. 00518_ U-05 Engineer lays Concrete. 00519_ U-05 Engineer builds a Wall. 00521_ K-01 Serf collects debris. 00552_ Med. Laser destroyed. 00553_ G-47 Trooper destroyed. 00555_ G-34 Mercenary destroyed. 00558_ Acquired 41 matter. 00559_ Acquired Sml. Laser. 00561_ Acquired 26 matter. 00564_ Acquired 10 matter. 00568_ Acquired Aluminum Leg. 00575_ Med. Laser destroyed. 00582_ Sml. Laser destroyed. 00587_ Lgt. Nuclear Core destroyed. 00597_ Hover Unit destroyed. Map ----- +----------------------------------------------------+ | | | | | | | | | | | | | | | | | | | | | | | ???????????????????????????????????????????? | | ???????????????????????????????????????????? | | ???????????????????????????????????????????? | | ???????????????????????????????????????????? | | ???????????????????????????????????????????? | | ??????????????????????######???????????????? | | ??????????????????????? ???????????????? | | ??????????????????????? ????????????????? | | ??????????????????????? ????????????????? | | ???????????????????????# ????????????????? | | ???????????????????????# #????????????????? | | ???????????????????????# #????????????????? | | ???????????????????????# #????????????????? | | ???????????????????????# #???#####?###????? | | ????????????????????#### @##### ## ##???? | | ????????????????##### # r #???? | | ???????????????## ##??? | | ???????????????# ss s #??? | | ???????????????# ###### #??? | | ???????????????# ##????## t #??? | | ???????????????## ###??????## ##??? | | ????????????????####?????????### ##???? | | ???????????????????????????????### ##???? | | ?????????????????????????????????## ##??? | | ??????????????????????????????????## #??? | | ???????????????????????????????????# #??? | | ??????????????????????????????????## #??? | | ?????????????????????????????###### #??? | | ?????????????????????????????# #??? | | ?????????????????????????????# #### ##??? | | ???????????????????##????????# #??#####???? | | ??????????????????## ???????# #??????????? | | ??????????????????# ??????# ####???????? | | ??????????????????# ?????# #???????? | | ???????????????????# ???## #???????? | | ???????????????????# #?## ##???????? | | ???????????????????# ## #????????? | | ????????????????????# #????????? | | ????????????????????##### ##????????? | +----------------------------------------------------+ Best States ------------- Heat Dissipation 25 Energy Generation 14 Energy Capacity 160 Matter Stores 300 Matter Capacity 300 Sight Range 16 Terrain Scan Density 10 Armor Coverage 150 Evasion (%) 53 Item Schematics ----------------- None Robot Schematics ------------------ None Fabricated ------------ Nothing Alien Tech Used ----------------- None Achievements -------------- None Challenges ------------ None Game ------ Seed HardcellSurveybotScreen Manual? 0 Play Time 00:18:40 Cumulative 12.2 hours Start 2020.06.22 @ 21:34:40 End 2020.08.08 @ 22:32:04 Sessions 2 Manual Loads 0 Difficulty Rogue Special Mode None Game No. 19 Rogue 10 Adventurer 9 Explorer 0 Win Type - Total 0 Types 0/0/0/0/0/0/0 Lore% 5 Gallery% 18 Achievement% 13 Wizard Run 0 Options --------- ASCII 0 Keyboard 0 Movement Mouse Keybinds 0 Fullscreen 2 Font 36/X11 Map View 76x50 Tactical HUD 1 Map Filters NONE Filters NONE Steam 1 RUN: dff3ac9c-dc3d-45f6-a1ad-a985142d657c